fUST/lending_fUST_20240120
["ID","MTS","AMOUNT","RATE_DAILY","PERIOD"]
[312235861,1705697455358,-500.0,0.00041369,31]
[312235864,1705697455375,-848.45,0.00041369,31]
[312235867,1705697455393,-2426.12,0.00041369,31]
[312235870,1705697455411,-500.0,0.00041369,31]
[312235873,1705697455429,-215.86312279,0.00041369,31]
[312235876,1705697455449,-500.0,0.00041369,31]
[312235879,1705697455466,-735.83,0.00041369,31]
[312235882,1705697455482,-500.0,0.00041369,31]
[312235884,1705697455497,-500.0,0.00041369,31]
[312235887,1705697455510,-500.0,0.00041369,31]
[312235889,1705697455524,-500.0,0.00041369,31]
[312235892,1705697455538,-500.0,0.00041369,31]
[312235894,1705697455556,-2001.01,0.00041369,31]
[312235897,1705697455570,-500.0,0.00041369,31]
[312235899,1705697455583,-500.0,0.00041369,31]
[312235902,1705697455598,-787.98,0.00041369,31]
[312235904,1705697455612,-407.97663313,0.00041369,31]
[312235907,1705697455626,-500.0,0.00041369,31]
[312235910,1705697455644,-500.0,0.00041369,31]
[312235912,1705697455659,-151.0,0.00041369,7]
[312235915,1705697455674,-151.0,0.00041369,7]
[312235918,1705697455688,-151.0,0.00041369,7]
[312235920,1705697455702,-411.419243,0.00041369,7]
[312235923,1705697455715,-411.419243,0.00041369,7]
[312235925,1705697455730,-411.419243,0.00041369,7]
[312235928,1705697455744,-411.41924969,0.00041369,7]
[312235930,1705697455759,-1265.817322,0.00041369,7]
[312235933,1705697455773,-1265.817322,0.00041369,7]
[312235936,1705697455787,-1265.817322,0.00041369,7]
[312235938,1705697455802,-1265.817332,0.00041369,7]
[312235941,1705697455815,-10000.0,0.00041369,7]
[312235943,1705697455829,-10000.0,0.00041369,7]
[312235946,1705697455844,-10000.0,0.00041369,7]
[312235949,1705697455858,-10000.0,0.00041369,7]
[312235958,1705697455934,-2127.0,0.00041425,14]
[312235960,1705697455952,-3627.0,0.00041425,14]
[312235963,1705697455962,-159.79980507,0.00041476,30]
[312235965,1705697455971,-235.123117,0.000415,21]
[312235967,1705697455980,-772.0,0.00041513,120]
[312235969,1705697455990,-287.346468,0.00041553,120]
[312235970,1705697455999,-500.0,0.00041643,31]
[312235973,1705697456009,-500.0,0.00041643,31]
[312235975,1705697456018,-500.0,0.00041643,31]
[312235977,1705697456027,-500.0,0.00041643,31]
[312235979,1705697456037,-500.0,0.00041643,31]
[312235981,1705697456046,-581.02,0.00041643,31]
[312235983,1705697456056,-500.0,0.00041643,31]
[312235985,1705697456065,-500.0,0.00041643,31]
[312235987,1705697456074,-500.0,0.00041643,31]
[312235989,1705697456083,-500.0,0.00041643,31]
[312235991,1705697456093,-500.0,0.00041643,31]
[312235993,1705697456102,-500.0,0.00041643,31]
[312235995,1705697456110,-500.0,0.00041643,31]
[312235997,1705697456120,-500.0,0.00041643,31]
[312235999,1705697456129,-500.0,0.00041643,31]
[312236001,1705697456138,-500.0,0.00041643,31]
[312236003,1705697456147,-521.3858914,0.00041643,31]
[312236005,1705697456156,-590.63987571,0.00041643,31]
[312236007,1705697456166,-500.0,0.00041643,31]
[312236009,1705697456175,-500.0,0.00041643,31]
[312236011,1705697456184,-500.0,0.00041643,31]
[312236013,1705697456193,-500.0,0.00041643,31]
[312236015,1705697456202,-500.0,0.00041643,14]
[312236017,1705697456211,-391.31701219,0.00041643,31]
[312236019,1705697456221,-500.0,0.00041643,31]
[312236021,1705697456229,-500.0,0.00041643,31]
[312236023,1705697456239,-500.0,0.00041643,31]
[312236025,1705697456248,-500.0,0.00041643,31]
[312236027,1705697456257,-500.0,0.00041643,31]
[312236029,1705697456266,-500.0,0.00041643,31]
[312236031,1705697456276,-500.0,0.00041643,7]
[312236033,1705697456285,-500.0,0.00041643,31]
[312236035,1705697456294,-232.99178309,0.00041643,31]
[312236037,1705697456303,-521.82498881,0.00041643,31]
[312236039,1705697456313,-500.0,0.00041643,31]
[312236041,1705697456322,-500.0,0.00041643,31]
[312236043,1705697456331,-500.0,0.00041643,31]
[312236044,1705697456340,-500.0,0.00041643,31]
[312236046,1705697456349,-500.0,0.00041643,31]
[312236048,1705697456359,-500.0,0.00041643,31]
[312236050,1705697456368,-500.0,0.00041643,31]
[312236051,1705697456377,-500.0,0.00041643,31]
[312236053,1705697456386,-500.0,0.00041643,31]
[312236056,1705697456395,-150.0,0.00041643,31]
[312236057,1705697456405,-500.0,0.00041643,31]
[312236060,1705697456415,-500.0,0.00041643,31]
[312236061,1705697456424,-500.0,0.00041643,7]
[312236063,1705697456433,-500.0,0.00041643,2]
[312236066,1705697456442,-248.604086,0.00041643,31]
[312236067,1705697456451,-528.56,0.00041643,31]
[312236069,1705697456461,-503.69616097,0.00041643,31]
[312236071,1705697456470,-500.0,0.00041643,31]
[312236073,1705697456479,-500.0,0.00041643,31]
[312236075,1705697456488,-500.0,0.00041643,31]
[312236077,1705697456497,-554.49,0.00041643,31]
[312236079,1705697456507,-177.77154326,0.00041643,31]
[312236081,1705697456517,-296.75355326,0.00041643,31]
[312236083,1705697456526,-500.0,0.00041643,31]
[312236085,1705697456534,-500.0,0.00041643,31]
[312236087,1705697456546,-525.01,0.00041643,31]
[312236089,1705697456556,-500.0,0.00041643,31]
[312236091,1705697456566,-500.0,0.00041643,31]
[312236093,1705697456576,-500.0,0.00041643,31]
[312236095,1705697456585,-500.0,0.00041643,31]
[312236097,1705697456595,-500.0,0.00041643,31]
[312236099,1705697456606,-500.0,0.00041643,31]
[312236101,1705697456615,-500.0,0.00041643,31]
[312236103,1705697456624,-895.14,0.00041643,31]
[312236105,1705697456634,-504.00329423,0.00041643,31]
[312236106,1705697456644,-500.0,0.00041643,31]
[312236108,1705697456654,-500.0,0.00041643,31]
[312236110,1705697456664,-500.0,0.00041643,31]
[312236112,1705697456673,-500.0,0.00041643,31]
[312236114,1705697456683,-500.0,0.00041643,31]
[312236116,1705697456692,-500.0,0.00041643,31]
[312236118,1705697456701,-624.38263946,0.00041643,31]
[312236120,1705697456710,-500.0,0.00041643,31]
[312236122,1705697456719,-25.61988842,0.00041643,31]
[312236155,1705697457052,-170.0,0.00033,2]
[312236157,1705697457063,-170.0,0.00034521,2]
[312236159,1705697457072,-500.0,0.00041095,2]
[312236161,1705697457082,-500.0,0.00041095,31]
[312236163,1705697457092,-500.0,0.00041369,2]
[312236165,1705697457101,-500.0,0.00041369,31]
[312236167,1705697457110,-474.38011158,0.00041643,31]
[312236169,1705697457120,-500.0,0.00041643,31]
[312236171,1705697457129,-500.93804997,0.00041643,31]
[312236173,1705697457138,-500.0,0.00041643,31]
[312236175,1705697457148,-1000.0,0.00041643,2]
[312236176,1705697457156,-509.80554677,0.00041643,31]
[312236178,1705697457167,-500.0,0.00041643,31]
[312236180,1705697457176,-500.0,0.00041643,31]
[312236182,1705697457186,-500.0,0.00041643,31]
[312236184,1705697457195,-500.0,0.00041643,31]
[312236186,1705697457204,-500.0,0.00041643,31]
[312236188,1705697457213,-500.0,0.00041643,31]
[312236190,1705697457222,-500.0,0.00041643,31]
[312236192,1705697457232,-500.0,0.00041643,31]
[312236194,1705697457240,-500.0,0.00041643,31]
[312236195,1705697457250,-500.0,0.00041643,31]
[312236197,1705697457259,-500.0,0.00041643,31]
[312236199,1705697457269,-395.89549653,0.00041643,31]
[312236201,1705697457278,-533.46,0.00041643,31]
[312236203,1705697457287,-2.14777108,0.00041643,31]
[312236205,1705697457299,-497.85222892,0.00041643,31]
[312236207,1705697457308,-607.03,0.00041643,31]
[312236209,1705697457318,-519.9641741,0.00041643,31]
[312236211,1705697457327,-500.0,0.00041643,31]
[312236213,1705697457337,-500.0,0.00041643,31]
[312236215,1705697457347,-32.86726762,0.00041643,31]
[312236222,1705697457405,-467.13273238,0.00041643,31]
[312236224,1705697457415,-500.0,0.00041643,31]
[312236226,1705697457424,-500.0,0.00041643,31]
[312236228,1705697457433,-500.0,0.00041643,31]
[312236230,1705697457442,-500.0,0.00041643,31]
[312236232,1705697457451,-500.0,0.00041643,31]
[312236233,1705697457460,-500.0,0.00041643,31]
[312236235,1705697457469,-500.0,0.00041643,31]
[312236237,1705697457479,-500.0,0.00041643,31]
[312236239,1705697457488,-150.13310849,0.00041643,31]
[312236241,1705697457497,-500.0,0.00041643,31]
[312236243,1705697457506,-500.0,0.00041643,31]
[312236245,1705697457515,-500.0,0.00041643,31]
[312236247,1705697457523,-597.25,0.00041643,31]
[312236248,1705697457532,-614.56305069,0.00041643,31]
[312236250,1705697457542,-500.0,0.00041643,2]
[312236252,1705697457551,-1000.0,0.00041643,2]
[312236254,1705697457564,-500.0,0.00041643,31]
[312236256,1705697457575,-632.46,0.00041643,31]
[312236258,1705697457586,-500.0,0.00041643,31]
[312236260,1705697457595,-500.0,0.00041643,31]
[312236262,1705697457604,-773.19,0.00041643,31]
[312236264,1705697457613,-55.11736117,0.00041643,31]
[312239588,1705697621086,983.71984278,0.00017761,2]
[312239589,1705697625382,242.52346398,0.00017761,2]
[312239594,1705697655229,154.84514885,0.000176,2]
[312239596,1705697665319,38838.05984825,0.0001,2]
[312239599,1705697671890,1858.7499098,0.00019734,5]
[312239600,1705697677071,780.85169614,0.00017761,2]
[312239601,1705697677101,196.69132072,0.00017761,2]
[312239604,1705697688667,4040.05030934,0.0001,2]
[312239606,1705697689255,547.67132072,0.00015,2]
[312239607,1705697692405,320.40143759,0.0001,2]
[312239609,1705697695479,156.66753163,0.0001,2]
[312239611,1705697706664,4040.05030934,0.0001,2]
[312239616,1705697722671,4040.05030934,0.0001,2]
[312239620,1705697742668,1972.41240789,0.0001,2]
[312239623,1705697751016,280.0,0.00021499,7]
[312239629,1705697827317,2754.8279386,0.00018421,2]
[312239634,1705697882531,165.70706234,0.00018421,2]
[312239639,1705697945787,27132.1551979,0.0001784,2]
[312239643,1705698051366,280.0,0.00021499,7]
[312239645,1705698095800,379.1597887,0.00018243,2]
[312239646,1705698126101,1012.291077,0.00017934,2]
[312239647,1705698206907,13082.90498841,0.00017793,2]
[312239648,1705698206934,11817.09501159,0.00017793,2]
[312239649,1705698351346,280.0,0.00021474,7]
[312239650,1705698449275,-154.86062544,0.00018587,2]
[312239651,1705698449297,-297.60968254,0.00018587,2]
[312239652,1705698452092,-250.0,0.00018587,2]
[312239653,1705698548181,-3484.00738958,0.00018582,2]
[312239654,1705698548204,-294.70821043,0.00018583,2]
[312239655,1705698548225,-242.99577859,0.00018583,2]
[312239656,1705698548246,-154.86062544,0.00018584,2]
[312239657,1705698548267,-2000.88810436,0.00018593,2]
[312239658,1705698548287,-155.25095813,0.00018613,2]
[312239659,1705698548309,-6722.23374278,0.000188,2]
[312239660,1705698548331,-769.36218751,0.000189,2]
[312239661,1705698548353,-2359.30159524,0.00019142,2]
[312239662,1705698548374,-166.242279,0.00019178,2]
[312239663,1705698548395,-278.76139798,0.000195,2]
[312239664,1705698548419,-200.0,0.00019522,2]
[312239665,1705698548439,-154.8915759,0.00019733,2]
[312239666,1705698548460,-1373.91434911,0.00019733,2]
[312239667,1705698548480,-166.70388086,0.00019734,2]
[312239668,1705698548501,-616.42934825,0.00019734,2]
[312239669,1705698548522,-4811.28224285,0.00019734,2]
[312239670,1705698548543,-166.80011479,0.00019734,2]
[312239671,1705698548564,-741.17872677,0.00019734,2]
[312239672,1705698548585,-605.18308629,0.00019734,2]
[312239673,1705698548607,-157.77559155,0.00019734,2]
[312239674,1705698548632,-2060.84094292,0.00019734,2]
[312239675,1705698548654,-4047.19041287,0.00019734,2]
[312239676,1705698548674,-1581.11940922,0.00019734,2]
[312239677,1705698548696,-155.02131266,0.00019734,2]
[312239678,1705698548716,-258.76819595,0.00019734,2]
[312239679,1705698548882,-1441.90150751,0.00019734,2]
[312239680,1705698548903,-228.01384031,0.00019734,2]
[312239681,1705698548924,-163.7019,0.00019734,2]
[312239682,1705698548948,-266.64256563,0.00019734,2]
[312239683,1705698548967,-253.97986618,0.00019734,2]
[312239684,1705698548988,-517.8862133,0.00019734,2]
[312239685,1705698549008,-191.31512244,0.00019734,2]
[312239686,1705698549028,-346.38618659,0.00019734,2]
[312239687,1705698549049,-154.92253873,0.00019734,2]
[312239688,1705698549068,-155.0,0.00019734,2]
[312239689,1705698549089,-334.8362529,0.00019734,2]
[312239690,1705698549124,-226.32093431,0.00019734,2]
[312239691,1705698549144,-301.77611122,0.00019734,2]
[312239692,1705698549170,-214.0852314,0.00019734,2]
[312239693,1705698549192,-155.34362049,0.00019734,2]
[312239694,1705698549212,-178.87513889,0.00019734,2]
[312239695,1705698549232,-15212.39198366,0.00019734,2]
[312239696,1705698549253,-260.99609825,0.00019734,2]
[312239697,1705698549273,-1299.26146621,0.00019734,2]
[312239698,1705698549295,-170.50663149,0.00019734,2]
[312239699,1705698549315,-594.2143433,0.00019735,2]
[312239700,1705698549335,-8230.52563531,0.00019735,2]
[312239701,1705698549356,-155.19121382,0.0002,2]
[312239702,1705698549376,-300.0,0.0002,2]
[312239703,1705698549395,-238.23153817,0.0002,2]
[312239704,1705698549415,-399.35137814,0.00021,2]
[312239705,1705698549435,-999.22386124,0.00021,2]
[312239706,1705698549455,-834.92436148,0.00021,2]
[312239707,1705698561113,-872.79217074,0.00021,2]
[312239708,1705698561142,-107.96668076,0.00021,2]
[312239709,1705698561170,-166.666666,0.00021918,2]
[312239710,1705698561192,-425.53656097,0.00022,2]
[312239711,1705698561212,-3963.07176261,0.00022,2]
[312239712,1705698561233,-166.666666,0.00022431,2]
[312239713,1705698561254,-166.666666,0.00022944,2]
[312239714,1705698561274,-166.666666,0.00023456,2]
[312239715,1705698561296,-391.0,0.00023622,7]
[312239716,1705698561318,-118.75942347,0.000239,2]
[312239717,1705698577137,506.145538,0.00018078,2]
[312239753,1705698634021,-650.60276404,0.000239,2]
[312239755,1705698634031,-20.73399716,0.00023969,2]
[312239758,1705698634056,-145.93266884,0.00023969,2]
[312239761,1705698634065,-496.83097243,0.00024021,2]
[312239764,1705698634074,-166.666666,0.00024482,2]
[312239767,1705698634083,-192.12529281,0.00024658,2]
[312239810,1705698639346,-87.87470719,0.00024658,2]
[312239811,1705698639355,-498.00832139,0.0002495,5]
[312239812,1705698639366,-154.87609912,0.00025,2]
[312239813,1705698639376,-152.92806292,0.00025,2]
[312239814,1705698639385,-4719.78899734,0.00025,2]
[312239815,1705698639395,-1006.60671829,0.00025,2]
[312239816,1705698639404,-1045.65136347,0.00025983,2]
[312239817,1705698639414,-200.0,0.00025984,7]
[312239818,1705698639424,-348.0,0.00025984,7]
[312239819,1705698639433,-506.145538,0.00027117,2]
[312239820,1705698639443,-261.40839953,0.000274,2]
[312239821,1705698639452,-616.06197521,0.000275,2]
[312239822,1705698639462,-290.08228321,0.00028,2]
[312239823,1705698639471,-6542.05161315,0.00028,2]
[312239824,1705698639481,-224.05287613,0.00028,7]
[312239825,1705698639490,-154.86062544,0.00028,10]
[312239826,1705698639500,-2452.95240971,0.00028222,2]
[312239827,1705698639509,-200.0,0.00028582,15]
[312239828,1705698639519,-200.0,0.00028582,15]
[312239829,1705698639527,-368.0,0.00028582,15]
[312239830,1705698639537,-179.7666778,0.000287,2]
[312239831,1705698639547,-1018.6437214,0.00028798,2]
[312239832,1705698639556,-1577.23828043,0.00028798,2]
[312239833,1705698639565,-154.90705277,0.00028798,2]
[312239834,1705698639575,-678.20873721,0.00028798,2]
[312239835,1705698639584,-238.23153817,0.00028798,2]
[312239836,1705698639595,-156.32295758,0.00028798,2]
[312239837,1705698639605,-294.32751889,0.00028798,2]
[312239838,1705698639617,-242.99577859,0.00028798,2]
[312239839,1705698639626,-163.62,0.00028799,2]
[312239840,1705698639636,-163.62,0.00028799,2]
[312239841,1705698639645,-163.62,0.00028799,2]
[312239842,1705698639655,-163.62,0.00028799,2]
[312239843,1705698639665,-163.62,0.00028799,2]
[312239844,1705698639676,-163.62,0.00028799,2]
[312239845,1705698639686,-874.27,0.00028799,2]
[312239846,1705698639696,-874.27,0.00028799,2]
[312239847,1705698639705,-874.27,0.00028799,2]
[312239848,1705698639716,-205.41929073,0.00028799,4]
[312239849,1705698639725,-584.18278243,0.00028799,4]
[312239850,1705698639735,-191.33589102,0.00028799,4]
[312239851,1705698639744,-500.0,0.00028799,2]
[312239852,1705698639753,-500.0,0.00028799,2]
[312239853,1705698639762,-500.0,0.00028799,2]
[312239854,1705698639772,-500.0,0.00028799,2]
[312239855,1705698639781,-471.18786474,0.00028799,2]
[312239856,1705698639790,-500.0,0.00028799,2]
[312239857,1705698639799,-500.0,0.00028799,2]
[312239858,1705698639808,-500.0,0.00028799,2]
[312239859,1705698639818,-233.53118274,0.00028799,2]
[312239860,1705698639827,-500.0,0.00028799,2]
[312239861,1705698639836,-500.0,0.00028799,2]
[312239862,1705698639846,-500.0,0.00028799,2]
[312239863,1705698639855,-342.08171321,0.00028799,2]
[312239864,1705698639866,-226.58238372,0.00028799,2]
[312239865,1705698639875,-160.45563072,0.00028799,2]
[312239866,1705698639885,-500.0,0.00028799,2]
[312239867,1705698639895,-500.0,0.00028799,2]
[312239868,1705698639904,-500.0,0.00028799,2]
[312239869,1705698639913,-500.0,0.00028799,2]
[312239870,1705698639922,-500.0,0.00028799,2]
[312239871,1705698639932,-500.0,0.00028799,2]
[312239872,1705698639941,-500.0,0.00028799,2]
[312239873,1705698639953,-500.0,0.00028799,2]
[312239874,1705698639968,-500.0,0.00028799,2]
[312239875,1705698639978,-500.0,0.00028799,2]
[312239876,1705698639987,-500.0,0.00028799,2]
[312239877,1705698639997,-500.0,0.00028799,2]
[312239878,1705698640008,-437.39632914,0.00028799,2]
[312239879,1705698640017,-499.99999999,0.00028799,2]
[312239880,1705698640026,-363.29119185,0.00028799,2]
[312239881,1705698640037,-499.99999999,0.00028799,2]
[312239882,1705698640047,-157.00534971,0.00028799,2]
[312239883,1705698640056,-602.20457598,0.000288,3]
[312239884,1705698640065,-69833.80810733,0.000288,2]
[312239885,1705698640078,-438240.07649795,0.000288,2]
[312239886,1705698640088,-24583.52528654,0.000288,2]
[312239887,1705698640097,-3000.0,0.000288,3]
[312239888,1705698640106,-769.36218751,0.000289,2]
[312239889,1705698640116,-309.58208351,0.00029,2]
[312239890,1705698640125,-1879.41245692,0.00029,2]
[312239891,1705698640134,-54792.97642603,0.00029,2]
[312239892,1705698640143,-832.47642224,0.00029,2]
[312239893,1705698640153,-2036.31691242,0.00029,2]
[312239894,1705698640162,-155.0,0.00029,2]
[312239895,1705698640171,-153.0,0.00029315,2]
[312239896,1705698640181,-153.0,0.00029315,2]
[312239897,1705698640190,-332.2608557,0.00029315,2]
[312239898,1705698640198,-198.957615,0.00029315,2]
[312239899,1705698640208,-153.0,0.00029315,2]
[312239900,1705698640217,-199.0432224,0.00029315,2]
[312239901,1705698640226,-153.0,0.00029315,2]
[312239902,1705698640236,-153.0,0.00029315,2]
[312239903,1705698640244,-153.0,0.00029315,2]
[312239904,1705698640254,-153.0,0.00029315,2]
[312239905,1705698640263,-22014.68480019,0.000295,30]
[312239906,1705698640272,-874.3,0.0002981,2]
[312239907,1705698640281,-50000.0,0.00029811,4]
[312239908,1705698640291,-50000.0,0.00029811,4]
[312239909,1705698640300,-50000.0,0.00029811,4]
[312239910,1705698640437,-58009.26676865,0.00029811,4]
[312239912,1705698640446,-12720.62879662,0.00029811,3]
[312239913,1705698640456,-36575.0,0.00029811,5]
[312239915,1705698640465,-1561.64177711,0.000299,2]
[312239917,1705698640475,-14056.67990484,0.000299,2]
[312239918,1705698640484,-5999.97,0.0003,7]
[312239919,1705698640494,-6000.0,0.0003,7]
[312239920,1705698640504,-230.43340321,0.0003,4]
[312239921,1705698640513,-243.97478798,0.0003,4]
[312239922,1705698640522,-464.33375401,0.0003,2]
[312239923,1705698640532,-681.93949513,0.0003,3]
[312239924,1705698640541,-29944.40132639,0.0003,2]
[312239925,1705698640551,-30319.07639528,0.0003,2]
[312239926,1705698640560,-30479.54764278,0.0003,3]
[312239927,1705698640569,-2103.77243551,0.0003,4]
[312239928,1705698640578,-18583.86209402,0.0003,2]
[312239929,1705698640587,-699.75171641,0.0003,2]
[312239930,1705698640596,-297226.94403429,0.0003,30]
[312239932,1705698641446,-983.70006597,0.0002879,3]
[312239933,1705698641543,-2727.70993403,0.0002879,3]
[312239934,1705698641552,-318.10784631,0.0003,30]
[312239960,1705698643451,-600.88982409,0.0003,30]
[312240032,1705699595093,-310.4009978,0.00024532,2]
[312240033,1705699631096,-154.86062544,0.00022431,2]
[312240034,1705699631121,-174.24179847,0.00022432,2]
[312240035,1705699631145,-699.74964804,0.00024531,5]
[312240036,1705699639099,-184.91824232,0.00024531,5]
[312240037,1705699643086,-189.50173679,0.00024531,5]
[312240038,1705699757118,-154.86062544,0.00022078,2]
[312240039,1705699757139,-7539.52,0.00024521,3]
[312240040,1705699757159,-2038.05199526,0.00024528,2]
[312240041,1705699757178,-977.54301686,0.00024529,2]
[312240042,1705699757199,-2257.97611701,0.0002453,2]
[312240043,1705699757220,-80557.5332367,0.00024531,2]
[312240044,1705699773131,-307.94022069,0.00022076,2]
[312240045,1705699773155,-28.76420232,0.00022078,2]
[312240106,1705699833887,-286.22633212,0.0002207,2]
[312240109,1705699833898,-246.07285378,0.0002207,2]
[312240111,1705699833907,-607.13204194,0.0002207,2]
[312240113,1705699833916,-849.76694483,0.0002207,2]
[312240115,1705699833925,-1197.20181474,0.0002207,2]
[312240117,1705699833934,-1265.98341186,0.00022071,2]
[312240118,1705699833944,-322.95530787,0.00022071,2]
[312240120,1705699833954,-175.13584081,0.00022071,2]
[312240122,1705699833963,-165.04572519,0.00022071,2]
[312240125,1705699833974,-1602.24051039,0.00022071,2]
[312240126,1705699833983,-154.86062544,0.00022072,2]
[312240128,1705699833993,-3128.22508425,0.00022072,2]
[312240130,1705699834002,-13713.11572984,0.00022073,2]
[312240132,1705699834011,-238.23153817,0.00022073,2]
[312240134,1705699834021,-8757.15684933,0.00022073,2]
[312240137,1705699834031,-643.28378818,0.00022074,2]
[312240138,1705699834040,-199.14321435,0.00022074,2]
[312240140,1705699834050,-2834.78752031,0.00022074,2]
[312240143,1705699834061,-4811.28224285,0.00022074,2]
[312240145,1705699834071,-137.34462457,0.00022078,2]
[312240146,1705699834081,-1109.19428477,0.00022078,2]
[312240149,1705699834091,-9029.84049052,0.00022078,2]
[312240169,1705699836580,2707.42562247,0.00022069,5]
[312240178,1705699838708,-566.0367723,0.00022069,2]
[312240180,1705699838820,-2917.97061728,0.00022069,2]
[312240181,1705699838830,-327.3065169,0.00022069,2]
[312240182,1705699838839,-588.02510206,0.00022069,2]
[312240183,1705699838848,-2813.43161407,0.00022069,2]
[312240184,1705699838857,-275016.66513705,0.00022078,2]
[312240185,1705699838866,-2083.05150517,0.00022078,2]
[312240186,1705699838875,-620.37329655,0.00022078,2]
[312240187,1705699838885,-823.86653966,0.000227,2]
[312240188,1705699838894,-166.666666,0.00023122,2]
[312240189,1705699838904,-4779.59202112,0.00023303,2]
[312240190,1705699838913,-166.666666,0.00023753,2]
[312240191,1705699838923,-302.66994715,0.00023783,2]
[312240192,1705699838932,-6318.52553758,0.00024274,2]
[312240193,1705699838941,-166.666666,0.00024383,2]
[312240194,1705699838950,-15568.86,0.00024501,3]
[312240195,1705699838959,-14924.27,0.00024509,3]
[312240196,1705699838968,-17909.12,0.00024511,3]
[312240197,1705699838977,-154.86062544,0.00024519,2]
[312240198,1705699838985,-1118.71561509,0.00024519,2]
[312240199,1705699838994,-261.99076107,0.00024519,2]
[312240200,1705699839004,-10522.58661927,0.00024519,2]
[312240201,1705699839013,-323.12147464,0.00024519,2]
[312240202,1705699839021,-191.16884209,0.00024519,2]
[312240203,1705699839030,-873.86173983,0.00024527,2]
[312240204,1705699839040,-195.19726849,0.00024527,2]
[312240205,1705699839049,-2071.696278,0.00024527,2]
[312240206,1705699839058,-154.86062544,0.00024528,2]
[312240207,1705699839068,-190.55418585,0.00024528,2]
[312240208,1705699839078,-155.39601086,0.00024529,2]
[312240209,1705699839087,-2996.33579383,0.00024529,2]
[312240210,1705699839220,-273.52161536,0.00024529,2]
[312240211,1705699839232,-218.87556881,0.00024529,2]
[312240212,1705699839242,-3001.78927518,0.00024529,7]
[312240213,1705699839251,-154.87609912,0.00024529,2]
[312240214,1705699839260,-521.84055297,0.00024529,2]
[312240215,1705699839270,-255.3140191,0.00024529,2]
[312240216,1705699839280,-230.71907883,0.00024529,2]
[312240217,1705699839289,-206.14362626,0.00024529,2]
[312240218,1705699839300,-875.93915164,0.00024529,2]
[312240219,1705699839311,-294.70821043,0.00024529,2]
[312240220,1705699839322,-13636.91051469,0.00024529,2]
[312240221,1705699839334,-154.87609912,0.00024529,2]
[312240222,1705699839343,-732.09851869,0.00024529,2]
[312240223,1705699839353,-154.87609912,0.00024529,2]
[312240224,1705699839362,-2006.86411987,0.00024529,2]
[312240225,1705699839371,-260.99609825,0.00024529,2]
[312240226,1705699839383,-154.87609912,0.00024529,2]
[312240227,1705699839394,-155.42257313,0.00024529,2]
[312240228,1705699839404,-1589.24944099,0.00024529,2]
[312240229,1705699839413,-500.0,0.0002453,2]
[312240230,1705699839423,-500.0,0.0002453,2]
[312240231,1705699839432,-500.0,0.0002453,2]
[312240232,1705699839441,-561.2772475,0.0002453,2]
[312240233,1705699839449,-500.0,0.0002453,2]
[312240234,1705699839460,-634.76987245,0.0002453,2]
[312240235,1705699839470,-500.0,0.0002453,2]
[312240236,1705699839479,-500.0,0.0002453,2]
[312240237,1705699839488,-500.0,0.0002453,2]
[312240238,1705699839497,-454.33124677,0.0002453,2]
[312240239,1705699839506,-500.0,0.0002453,2]
[312240240,1705699839515,-500.0,0.0002453,2]
[312240241,1705699839525,-500.0,0.0002453,2]
[312240242,1705699839534,-500.0,0.0002453,2]
[312240243,1705699839543,-500.0,0.0002453,2]
[312240244,1705699839553,-500.0,0.0002453,2]
[312240245,1705699839562,-500.0,0.0002453,2]
[312240246,1705699839571,-606.86001687,0.0002453,2]
[312240247,1705699839581,-500.0,0.0002453,2]
[312240248,1705699839590,-456.4766985,0.0002453,2]